[Event "2026 European Womens Championship"]
[Site "Batumi, GE"]
[Date "2026.06.04"]
[Round "10"]
[White "Mkrtchyan, Mariam"]
[Black "Zimina, Olga"]
[Result "0-1"]
[Board "13"]
[TimeControl "5400+30"]
[WhiteFideId "13310828"]
[BlackFideId "4132190"]
[WhiteElo "2365"]
[BlackElo "2290"]
[WhiteTitle "WGM"]
[BlackTitle "IM"]
[WhiteClock "0:08:16"]
[BlackClock "0:10:47"]
[Variant "Standard"]

1. e4 {[%clk 1:26:58]}  c5 {[%clk 1:30:50]} 2. Nc3 {[%clk 1:26:39]}  Nc6 {[%clk 1:31:14]} 3. Nf3 {[%clk 1:26:57]}  Nf6 {[%clk 1:31:25]}
4. Bb5 {[%clk 1:26:54]}  Nd4 {[%clk 1:27:14]} 5. e5 {[%clk 1:25:40]}  Nxb5 {[%clk 1:26:46]} 6. Nxb5 {[%clk 1:26:03]}  Nd5 {[%clk 1:26:01]}
7. c4 {[%clk 1:24:59]}  Nc7 {[%clk 1:25:23]} 8. Nc3 {[%clk 1:19:36]}  d5 {[%clk 1:23:47]} 9. exd6 {[%clk 1:16:23]}  Qxd6 {[%clk 1:02:43]}
10. O-O {[%clk 1:12:32]}  Bg4 {[%clk 1:01:07]} 11. h3 {[%clk 1:07:20]}  Bh5 {[%clk 0:45:26]} 12. Qa4+ {[%clk 1:02:26]}  Qd7 {[%clk 0:45:22]}
13. Qxd7+ {[%clk 1:01:31]}  Kxd7 {[%clk 0:45:49]} 14. g4 {[%clk 1:00:56]}  Bg6 {[%clk 0:46:17]} 15. d4 {[%clk 0:54:28]}  cxd4 {[%clk 0:45:59]}
16. Rd1 {[%clk 0:48:45]}  Re8 {[%clk 0:34:28]} 17. Nxd4 {[%clk 0:42:09]}  Kc8 {[%clk 0:34:17]} 18. Ndb5 {[%clk 0:36:49]}  Nxb5 {[%clk 0:33:21]}
19. cxb5 {[%clk 0:37:01]}  h5 {[%clk 0:22:04]} 20. Be3 {[%clk 0:31:06]}  Kb8 {[%clk 0:22:29]} 21. Rd7 {[%clk 0:24:53]}  e6 {[%clk 0:20:31]}
22. a3 {[%clk 0:24:44]}  hxg4 {[%clk 0:20:43]} 23. hxg4 {[%clk 0:25:09]}  f6 {[%clk 0:19:38]} 24. Rad1 {[%clk 0:20:01]}  Rc8 {[%clk 0:19:20]}
25. f3 {[%clk 0:16:11]}  Bc2 {[%clk 0:16:05]} 26. Rc1 {[%clk 0:13:39]}  Bb3 {[%clk 0:15:59]} 27. Ne4 {[%clk 0:12:39]}  Rxc1+ {[%clk 0:14:26]}
28. Bxc1 {[%clk 0:13:07]}  Bd5 {[%clk 0:12:12]} 29. Bf4+ {[%clk 0:10:20]}  Kc8 {[%clk 0:11:19]} 30. Rc7+ {[%clk 0:10:47]}  Kd8 {[%clk 0:11:45]}
31. Rc3 {[%clk 0:08:39]}  Bxe4 {[%clk 0:10:21]} 32. fxe4 {[%clk 0:09:06]}  Rh4 {[%clk 0:10:37]} 33. Rg3 {[%clk 0:07:40]}  Bc5+ {[%clk 0:10:47]}
34. Kg2 {[%clk 0:07:25]}  g5 {[%clk 0:10:15]} 35. Rd3+ {[%clk 0:04:08]}  Ke7 {[%clk 0:09:10]} 36. Bg3 {[%clk 0:03:26]}  Rxg4 {[%clk 0:05:56]}
37. Kf3 {[%clk 0:03:52]}  f5 {[%clk 0:06:41]} 38. exf5 {[%clk 0:04:09]}  Rc4 {[%clk 0:05:30]} 39. fxe6 {[%clk 0:02:53]}  g4+ {[%clk 0:04:15]}
40. Ke2 {[%clk 0:02:11]}  Kxe6 {[%clk 0:01:10]} 41. Rd2 {[%clk 0:25:59]}  Re4+ {[%clk 0:24:43]} 42. Kf1 {[%clk 0:23:32]}  Re3 {[%clk 0:23:57]}
43. Kg2 {[%clk 0:19:46]}  Rb3 {[%clk 0:23:25]} 44. Bf2 {[%clk 0:17:02]}  Bxf2 {[%clk 0:22:53]} 45. Kxf2 {[%clk 0:17:24]}  Rxb5 {[%clk 0:17:34]}
46. Kg3 {[%clk 0:16:07]}  Rd5 {[%clk 0:14:57]} 47. Re2+ {[%clk 0:15:32]}  Kf5 {[%clk 0:15:09]} 48. Re3 {[%clk 0:15:05]}  a5 {[%clk 0:14:15]}
49. a4 {[%clk 0:09:36]}  Rd4 {[%clk 0:14:23]} 50. b3 {[%clk 0:09:35]}  Rb4 {[%clk 0:14:26]} 51. Kg2 {[%clk 0:07:47]}  Kf4 {[%clk 0:14:42]}
52. Kf2 {[%clk 0:08:15]}  b6 {[%clk 0:14:07]} 53. Rc3 {[%clk 0:07:10]}  Ke4 {[%clk 0:13:16]} 54. Ke2 {[%clk 0:07:39]}  Kd5 {[%clk 0:12:47]}
55. Rd3+ {[%clk 0:04:53]}  Rd4 {[%clk 0:12:47]} 56. Rc3 {[%clk 0:05:23]}  Re4+ {[%clk 0:10:54]} 57. Kf2 {[%clk 0:05:45]}  Rf4+ {[%clk 0:11:07]}
58. Ke2 {[%clk 0:06:12]}  Rf3 {[%clk 0:10:08]} 59. Rc4 {[%clk 0:06:09]}  Rxb3 {[%clk 0:09:54]} 60. Rxg4 {[%clk 0:06:36]}  Rb4 {[%clk 0:10:16]}
61. Rg5+ {[%clk 0:04:49]}  Kc4 {[%clk 0:10:40]} 62. Rg6 {[%clk 0:05:06]}  Kb3 {[%clk 0:11:02]} 63. Kd3 {[%clk 0:05:18]}  Kxa4 {[%clk 0:11:24]}
64. Kc3 {[%clk 0:05:45]}  b5 {[%clk 0:10:52]} 65. Rg1 {[%clk 0:06:06]}  Rb3+ {[%clk 0:11:11]} 66. Kc2 {[%clk 0:06:33]}  Kb4 {[%clk 0:09:53]}
67. Rg4+ {[%clk 0:06:43]}  Ka3 {[%clk 0:10:17]} 68. Rg5 {[%clk 0:06:59]}  a4 {[%clk 0:10:38]} 69. Rg1 {[%clk 0:07:15]}  Rb2+ {[%clk 0:10:54]}
70. Kc1 {[%clk 0:07:24]}  b4 {[%clk 0:10:35]} 71. Rg3+ {[%clk 0:07:43]}  Ka2 {[%clk 0:10:51]} 72. Rg4 {[%clk 0:08:05]}  a3 {[%clk 0:11:02]}
73. Rg3 {[%clk 0:08:16]}  Rh2 {[%clk 0:10:47]} 0-1

[Event "2026 European Womens Championship"]
[Site "Batumi, GE"]
[Date "2026.06.04"]
[Round "10"]
[White "Kobak, Polina"]
[Black "Bivol, Alina"]
[Result "1/2-1/2"]
[Board "14"]
[TimeControl "5400+30"]
[WhiteFideId "24269727"]
[BlackFideId "4100123"]
[WhiteElo "1986"]
[BlackElo "2361"]
[WhiteTitle "WFM"]
[BlackTitle "IM"]
[WhiteClock "0:03:48"]
[BlackClock "0:01:57"]
[Variant "Standard"]

1. d4 {[%clk 1:30:58]}  d6 {[%clk 1:30:32]} 2. e4 {[%clk 1:30:59]}  Nf6 {[%clk 1:30:34]} 3. Nc3 {[%clk 1:31:00]}  e5 {[%clk 1:30:29]}
4. Nf3 {[%clk 1:30:25]}  Nbd7 {[%clk 1:30:41]} 5. Bc4 {[%clk 1:26:37]}  Be7 {[%clk 1:26:32]} 6. a4 {[%clk 1:23:50]}  c6 {[%clk 1:24:44]}
7. Ba2 {[%clk 1:21:01]}  O-O {[%clk 1:22:56]} 8. O-O {[%clk 1:21:18]}  h6 {[%clk 1:23:00]} 9. Re1 {[%clk 1:17:18]}  Re8 {[%clk 1:21:58]}
10. Be3 {[%clk 1:05:56]}  Bf8 {[%clk 1:15:17]} 11. h3 {[%clk 0:58:38]}  b6 {[%clk 1:07:09]} 12. Nd2 {[%clk 0:50:04]}  Bb7 {[%clk 1:01:21]}
13. Nf1 {[%clk 0:44:50]}  a6 {[%clk 0:49:19]} 14. d5 {[%clk 0:35:52]}  b5 {[%clk 0:45:11]} 15. dxc6 {[%clk 0:29:35]}  Bxc6 {[%clk 0:45:34]}
16. Ng3 {[%clk 0:29:12]}  Nc5 {[%clk 0:44:39]} 17. axb5 {[%clk 0:26:15]}  axb5 {[%clk 0:44:59]} 18. f3 {[%clk 0:13:53]}  Qc8 {[%clk 0:40:20]}
19. Qd2 {[%clk 0:12:24]}  Qb7 {[%clk 0:32:56]} 20. Nf5 {[%clk 0:09:09]}  Red8 {[%clk 0:30:08]} 21. Nd5 {[%clk 0:05:04]}  Nxd5 {[%clk 0:30:20]}
22. Bxd5 {[%clk 0:05:23]}  Rac8 {[%clk 0:27:55]} 23. Ra5 {[%clk 0:03:38]}  Bxd5 {[%clk 0:22:25]} 24. Qxd5 {[%clk 0:03:12]}  Qxd5 {[%clk 0:22:17]}
25. exd5 {[%clk 0:03:40]}  Rb8 {[%clk 0:22:46]} 26. b3 {[%clk 0:01:18]}  Nd7 {[%clk 0:23:09]} 27. Rd1 {[%clk 0:00:49]}  Nf6 {[%clk 0:18:53]}
28. Bc1 {[%clk 0:00:47]}  Rdc8 {[%clk 0:18:42]} 29. Ne3 {[%clk 0:00:51]}  g6 {[%clk 0:17:57]} 30. Ba3 {[%clk 0:00:55]}  h5 {[%clk 0:14:10]}
31. Kf2 {[%clk 0:01:20]}  Ra8 {[%clk 0:14:17]} 32. Rxa8 {[%clk 0:01:15]}  Rxa8 {[%clk 0:14:46]} 33. Bb4 {[%clk 0:01:38]}  Be7 {[%clk 0:13:59]}
34. c4 {[%clk 0:01:33]}  bxc4 {[%clk 0:14:17]} 35. bxc4 {[%clk 0:01:59]}  Ra4 {[%clk 0:14:20]} 36. Bc3 {[%clk 0:01:46]}  Nd7 {[%clk 0:14:09]}
37. Ra1 {[%clk 0:01:36]}  Rxa1 {[%clk 0:14:25]} 38. Bxa1 {[%clk 0:02:02]}  Kf8 {[%clk 0:08:19]} 39. Bc3 {[%clk 0:01:54]}  Ke8 {[%clk 0:08:41]}
40. Ke2 {[%clk 0:01:09]}  Nc5 {[%clk 0:04:40]} 41. Nc2 {[%clk 0:23:47]}  Kd7 {[%clk 0:34:44]} 42. Nb4 {[%clk 0:22:47]}  Na4 {[%clk 0:33:57]}
43. Kd3 {[%clk 0:14:26]}  Bh4 {[%clk 0:30:43]} 44. Nc6 {[%clk 0:15:18]}  Bf6 {[%clk 0:29:05]} 45. Kc2 {[%clk 0:12:42]}  Nxc3 {[%clk 0:24:09]}
46. Kxc3 {[%clk 0:13:07]}  e4+ {[%clk 0:24:35]} 47. Kc2 {[%clk 0:13:08]}  exf3 {[%clk 0:24:51]} 48. gxf3 {[%clk 0:13:34]}  Bh4 {[%clk 0:23:44]}
49. Kd3 {[%clk 0:13:04]}  Kc7 {[%clk 0:20:00]} 50. Ke4 {[%clk 0:10:30]}  Kb6 {[%clk 0:19:45]} 51. Ke3 {[%clk 0:08:25]}  Bf6 {[%clk 0:10:51]}
52. Nb8 {[%clk 0:08:20]}  Kc7 {[%clk 0:11:01]} 53. Nc6 {[%clk 0:08:44]}  Bg7 {[%clk 0:10:45]} 54. Ne7 {[%clk 0:08:14]}  Kd7 {[%clk 0:10:29]}
55. Nc6 {[%clk 0:08:37]}  f5 {[%clk 0:10:31]} 56. Nb4 {[%clk 0:05:52]}  g5 {[%clk 0:08:49]} 57. Nc2 {[%clk 0:04:49]}  Bb2 {[%clk 0:07:37]}
58. Ke2 {[%clk 0:02:21]}  Ke7 {[%clk 0:07:49]} 59. Nb4 {[%clk 0:01:28]}  Kf6 {[%clk 0:06:58]} 60. Nd3 {[%clk 0:01:52]}  Bd4 {[%clk 0:07:18]}
61. Kf1 {[%clk 0:02:10]}  g4 {[%clk 0:05:28]} 62. fxg4 {[%clk 0:02:28]}  hxg4 {[%clk 0:05:38]} 63. hxg4 {[%clk 0:02:50]}  fxg4 {[%clk 0:06:04]}
64. Kg2 {[%clk 0:02:00]}  Kg5 {[%clk 0:06:30]} 65. Kg3 {[%clk 0:02:17]}  Kf5 {[%clk 0:06:55]} 66. Nb4 {[%clk 0:01:12]}  Be5+ {[%clk 0:06:33]}
67. Kg2 {[%clk 0:00:53]}  Ke4 {[%clk 0:06:43]} 68. Nc6 {[%clk 0:01:19]}  Bf4 {[%clk 0:06:24]} 69. Nd8 {[%clk 0:00:52]}  Bg5 {[%clk 0:03:23]}
70. Ne6 {[%clk 0:01:00]}  Bh4 {[%clk 0:03:39]} 71. Ng7 {[%clk 0:01:04]}  Bf6 {[%clk 0:03:12]} 72. Ne6 {[%clk 0:00:53]}  Bh4 {[%clk 0:02:06]}
73. Ng7 {[%clk 0:01:19]}  Bf6 {[%clk 0:01:51]} 74. Ne6 {[%clk 0:01:45]}  Be5 {[%clk 0:02:20]} 75. Kf2 {[%clk 0:02:10]}  Kf5 {[%clk 0:01:47]}
76. Kg2 {[%clk 0:02:22]}  Ke4 {[%clk 0:02:14]} 77. Kf2 {[%clk 0:02:45]}  Kf5 {[%clk 0:02:12]} 78. Kg2 {[%clk 0:03:12]}  Ke4 {[%clk 0:01:22]}
79. Kf2 {[%clk 0:03:38]}  Kd3 {[%clk 0:01:03]} 80. c5 {[%clk 0:03:27]}  dxc5 {[%clk 0:01:23]} 81. Nxc5+ {[%clk 0:03:54]}  Kd4 {[%clk 0:01:42]}
82. Nd7 {[%clk 0:03:32]}  Kxd5 {[%clk 0:01:36]} 83. Nf6+ {[%clk 0:03:48]}  Bxf6 {[%clk 0:01:57]} 1/2-1/2

[Event "2026 European Womens Championship"]
[Site "Batumi, GE"]
[Date "2026.06.04"]
[Round "10"]
[White "Socko, Monika"]
[Black "Unuk, Laura"]
[Result "1/2-1/2"]
[Board "15"]
[TimeControl "5400+30"]
[WhiteFideId "1106619"]
[BlackFideId "14609215"]
[WhiteElo "2355"]
[BlackElo "2289"]
[WhiteTitle "GM"]
[BlackTitle "IM"]
[WhiteClock "0:09:20"]
[BlackClock "0:06:45"]
[Variant "Standard"]

1. e4 {[%clk 1:30:57]}  c6 {[%clk 1:29:36]} 2. d4 {[%clk 1:31:22]}  d5 {[%clk 1:30:02]} 3. exd5 {[%clk 1:31:47]}  cxd5 {[%clk 1:30:28]}
4. Nf3 {[%clk 1:32:11]}  Nc6 {[%clk 1:25:13]} 5. c3 {[%clk 1:32:24]}  e6 {[%clk 1:24:37]} 6. Bd3 {[%clk 1:30:36]}  Bd6 {[%clk 1:22:24]}
7. O-O {[%clk 1:30:57]}  Nge7 {[%clk 1:22:46]} 8. Re1 {[%clk 1:31:17]}  O-O {[%clk 1:22:23]} 9. Nbd2 {[%clk 1:31:16]}  f6 {[%clk 1:22:10]}
10. c4 {[%clk 1:16:15]}  Kh8 {[%clk 1:22:11]} 11. Nb3 {[%clk 1:05:51]}  a5 {[%clk 1:07:40]} 12. Be3 {[%clk 0:56:09]}  Nb4 {[%clk 1:01:34]}
13. Bf1 {[%clk 0:47:56]}  a4 {[%clk 0:55:24]} 14. Nbd2 {[%clk 0:43:16]}  e5 {[%clk 0:43:49]} 15. dxe5 {[%clk 0:39:32]}  fxe5 {[%clk 0:44:07]}
16. a3 {[%clk 0:34:46]}  Nbc6 {[%clk 0:41:31]} 17. cxd5 {[%clk 0:35:09]}  Nxd5 {[%clk 0:41:13]} 18. Nc4 {[%clk 0:28:31]}  Nxe3 {[%clk 0:21:37]}
19. Rxe3 {[%clk 0:28:56]}  Bc5 {[%clk 0:18:10]} 20. Qxd8 {[%clk 0:29:21]}  Rxd8 {[%clk 0:17:24]} 21. Ree1 {[%clk 0:29:46]}  Rf8 {[%clk 0:15:13]}
22. Ncxe5 {[%clk 0:28:41]}  Nxe5 {[%clk 0:13:03]} 23. Rxe5 {[%clk 0:29:04]}  b6 {[%clk 0:13:31]} 24. Bc4 {[%clk 0:21:37]}  Bg4 {[%clk 0:12:42]}
25. Bd5 {[%clk 0:16:52]}  Rad8 {[%clk 0:12:40]} 26. Rae1 {[%clk 0:13:46]}  h6 {[%clk 0:07:59]} 27. h3 {[%clk 0:12:38]}  Bxf3 {[%clk 0:07:41]}
28. Bxf3 {[%clk 0:12:44]}  Rd2 {[%clk 0:05:11]} 29. R5e2 {[%clk 0:12:57]}  Rfd8 {[%clk 0:04:42]} 30. Bc6 {[%clk 0:12:14]}  R8d4 {[%clk 0:02:41]}
31. g3 {[%clk 0:07:14]}  g5 {[%clk 0:03:03]} 32. Kg2 {[%clk 0:06:42]}  Kg7 {[%clk 0:03:03]} 33. Bf3 {[%clk 0:05:40]}  Rd6 {[%clk 0:00:36]}
34. Bh5 {[%clk 0:05:12]}  R6d4 {[%clk 0:00:42]} 35. Be8 {[%clk 0:04:12]}  Kf8 {[%clk 0:00:46]} 36. Bb5 {[%clk 0:04:13]}  Kg7 {[%clk 0:01:11]}
37. Kf3 {[%clk 0:04:25]}  Kf6 {[%clk 0:00:58]} 38. Re6+ {[%clk 0:04:35]}  Kg7 {[%clk 0:01:26]} 39. R1e2 {[%clk 0:04:31]}  h5 {[%clk 0:00:34]}
40. R6e5 {[%clk 0:03:26]}  Kf6 {[%clk 0:00:39]} 41. Re6+ {[%clk 0:02:32]}  Kg7 {[%clk 0:00:56]} 42. Be8 {[%clk 0:00:47]}  h4 {[%clk 0:22:15]}
43. Bb5 {[%clk 0:24:24]}  Kf7 {[%clk 0:18:04]} 44. Re8 {[%clk 0:22:49]}  Kg7 {[%clk 0:15:50]} 45. Kg2 {[%clk 0:20:18]}  Rxe2 {[%clk 0:13:59]}
46. Rxe2 {[%clk 0:20:36]}  Kf6 {[%clk 0:14:11]} 47. Kf3 {[%clk 0:19:12]}  Kf5 {[%clk 0:14:12]} 48. Bc6 {[%clk 0:16:18]}  Rd3+ {[%clk 0:12:57]}
49. Kg2 {[%clk 0:16:43]}  Rd4 {[%clk 0:13:09]} 50. Bf3 {[%clk 0:16:00]}  Kf6 {[%clk 0:12:09]} 51. Bg4 {[%clk 0:16:01]}  Bd6 {[%clk 0:10:31]}
52. Kf3 {[%clk 0:13:41]}  Bc5 {[%clk 0:03:33]} 53. Rc2 {[%clk 0:11:12]}  Rd3+ {[%clk 0:05:37]} 54. Ke4 {[%clk 0:08:46]}  Rd4+ {[%clk 0:05:53]}
55. Kf3 {[%clk 0:08:56]}  Rd3+ {[%clk 0:06:19]} 56. Ke4 {[%clk 0:09:20]}  Rd4+ {[%clk 0:06:45]} 1/2-1/2

[Event "2026 European Womens Championship"]
[Site "Batumi, GE"]
[Date "2026.06.04"]
[Round "10"]
[White "Hrebenshchykova, Yelyzaveta"]
[Black "Tsolakidou, Stavroula"]
[Result "0-1"]
[Board "16"]
[TimeControl "5400+30"]
[WhiteFideId "14159899"]
[BlackFideId "4264312"]
[WhiteElo "2309"]
[BlackElo "2455"]
[WhiteTitle "WGM"]
[BlackTitle "IM"]
[WhiteClock "0:08:12"]
[BlackClock "0:19:49"]
[Variant "Standard"]

1. e4 {[%clk 1:28:46]}  c5 {[%clk 1:30:53]} 2. Nf3 {[%clk 1:29:12]}  d6 {[%clk 1:31:16]} 3. d4 {[%clk 1:29:37]}  cxd4 {[%clk 1:31:40]}
4. Nxd4 {[%clk 1:30:05]}  Nf6 {[%clk 1:32:02]} 5. Nc3 {[%clk 1:30:32]}  a6 {[%clk 1:32:28]} 6. f4 {[%clk 1:30:59]}  e5 {[%clk 1:30:14]}
7. Nb3 {[%clk 1:31:23]}  Nc6 {[%clk 1:23:25]} 8. f5 {[%clk 1:29:20]}  d5 {[%clk 1:07:06]} 9. exd5 {[%clk 1:23:56]}  Nb4 {[%clk 1:01:54]}
10. Bd3 {[%clk 0:57:08]}  Nfxd5 {[%clk 0:45:52]} 11. O-O {[%clk 0:35:11]}  Be7 {[%clk 0:40:11]} 12. Qe2 {[%clk 0:31:39]}  Nxc3 {[%clk 0:38:21]}
13. bxc3 {[%clk 0:32:05]}  Nxd3 {[%clk 0:38:39]} 14. cxd3 {[%clk 0:32:31]}  O-O {[%clk 0:36:42]} 15. Qxe5 {[%clk 0:31:49]}  Bf6 {[%clk 0:35:22]}
16. Qg3 {[%clk 0:31:20]}  Bxc3 {[%clk 0:33:28]} 17. Rb1 {[%clk 0:31:44]}  f6 {[%clk 0:27:00]} 18. Kh1 {[%clk 0:24:59]}  Be5 {[%clk 0:26:05]}
19. Qf3 {[%clk 0:19:28]}  Qc7 {[%clk 0:18:17]} 20. Ba3 {[%clk 0:19:35]}  Rd8 {[%clk 0:18:19]} 21. Rfc1 {[%clk 0:09:09]}  Qd7 {[%clk 0:17:08]}
22. d4 {[%clk 0:05:46]}  Bb8 {[%clk 0:17:31]} 23. Nc5 {[%clk 0:05:06]}  Qxf5 {[%clk 0:14:01]} 24. Nxb7 {[%clk 0:05:33]}  Qxf3 {[%clk 0:12:57]}
25. gxf3 {[%clk 0:06:00]}  Re8 {[%clk 0:10:15]} 26. Nd6 {[%clk 0:06:21]}  Bxd6 {[%clk 0:10:25]} 27. Bxd6 {[%clk 0:06:49]}  Be6 {[%clk 0:10:28]}
28. a3 {[%clk 0:04:50]}  Bd5 {[%clk 0:10:31]} 29. Kg2 {[%clk 0:02:30]}  Re3 {[%clk 0:09:50]} 30. Rf1 {[%clk 0:00:48]}  g5 {[%clk 0:10:05]}
31. Kg3 {[%clk 0:00:32]}  h5 {[%clk 0:09:34]} 32. h4 {[%clk 0:00:51]}  Rae8 {[%clk 0:07:11]} 33. hxg5 {[%clk 0:00:39]}  fxg5 {[%clk 0:07:37]}
34. Be5 {[%clk 0:00:37]}  Rf8 {[%clk 0:07:37]} 35. Rb6 {[%clk 0:00:38]}  Bxf3 {[%clk 0:05:50]} 36. Rf6 {[%clk 0:00:37]}  Rxf6 {[%clk 0:04:21]}
37. Bxf6 {[%clk 0:01:03]}  Be2+ {[%clk 0:01:45]} 38. Kf2 {[%clk 0:01:30]}  Re6 {[%clk 0:02:07]} 39. Rc1 {[%clk 0:00:45]}  Rxf6+ {[%clk 0:02:29]}
40. Kxe2 {[%clk 0:01:12]}  Kf7 {[%clk 0:02:15]} 41. Ke3 {[%clk 0:22:11]}  g4 {[%clk 0:27:37]} 42. d5 {[%clk 0:20:32]}  g3 {[%clk 0:24:05]}
43. Rh1 {[%clk 0:14:44]}  g2 {[%clk 0:19:26]} 44. Rg1 {[%clk 0:15:11]}  Rg6 {[%clk 0:19:53]} 45. Kf2 {[%clk 0:14:25]}  Ke7 {[%clk 0:19:48]}
46. Re1+ {[%clk 0:13:11]}  Kd6 {[%clk 0:20:12]} 47. Kg1 {[%clk 0:13:39]}  Kxd5 {[%clk 0:20:33]} 48. Re3 {[%clk 0:14:04]}  h4 {[%clk 0:20:30]}
49. a4 {[%clk 0:11:09]}  Rg4 {[%clk 0:20:03]} 50. a5 {[%clk 0:09:29]}  Kc4 {[%clk 0:20:14]} 51. Re6 {[%clk 0:08:16]}  h3 {[%clk 0:20:34]}
52. Rh6 {[%clk 0:08:08]}  Rg3 {[%clk 0:20:58]} 53. Rh5 {[%clk 0:08:35]}  Rf3 {[%clk 0:19:41]} 54. Rh4+ {[%clk 0:08:12]}  Kd5 {[%clk 0:19:49]} 0-1

[Event "2026 European Womens Championship"]
[Site "Batumi, GE"]
[Date "2026.06.04"]
[Round "10"]
[White "Krasteva, Beloslava"]
[Black "Buksa, Nataliya"]
[Result "1/2-1/2"]
[Board "17"]
[TimeControl "5400+30"]
[WhiteFideId "2922029"]
[BlackFideId "14123622"]
[WhiteElo "2285"]
[BlackElo "2392"]
[WhiteTitle "WGM"]
[BlackTitle "IM"]
[WhiteClock "0:22:40"]
[BlackClock "0:31:14"]
[Variant "Standard"]

1. d4 {[%clk 1:30:25]}  d5 {[%clk 1:29:29]} 2. Nf3 {[%clk 1:30:41]}  Nf6 {[%clk 1:29:57]} 3. e3 {[%clk 1:30:59]}  c5 {[%clk 1:29:32]}
4. dxc5 {[%clk 1:31:00]}  e6 {[%clk 1:26:56]} 5. b4 {[%clk 1:31:12]}  a5 {[%clk 1:27:10]} 6. c3 {[%clk 1:31:14]}  axb4 {[%clk 1:25:57]}
7. cxb4 {[%clk 1:31:38]}  b6 {[%clk 1:26:22]} 8. Bb5+ {[%clk 1:31:37]}  Bd7 {[%clk 1:26:34]} 9. Bxd7+ {[%clk 1:31:47]}  Qxd7 {[%clk 1:24:06]}
10. a4 {[%clk 1:26:11]}  bxc5 {[%clk 1:15:00]} 11. b5 {[%clk 1:26:07]}  Bd6 {[%clk 1:12:16]} 12. Bb2 {[%clk 1:25:37]}  Qc7 {[%clk 1:10:22]}
13. Nbd2 {[%clk 1:17:35]}  Nbd7 {[%clk 1:02:52]} 14. Qc2 {[%clk 1:15:19]}  h6 {[%clk 0:36:53]} 15. Bc3 {[%clk 1:02:07]}  O-O {[%clk 0:34:17]}
16. O-O {[%clk 0:55:38]}  Ng4 {[%clk 0:29:44]} 17. h3 {[%clk 0:50:04]}  Nge5 {[%clk 0:30:10]} 18. a5 {[%clk 0:48:41]}  c4 {[%clk 0:30:37]}
19. b6 {[%clk 0:48:02]}  Qb7 {[%clk 0:30:42]} 20. Nd4 {[%clk 0:43:46]}  Nd3 {[%clk 0:29:58]} 21. Nb5 {[%clk 0:43:33]}  Bb8 {[%clk 0:28:21]}
22. e4 {[%clk 0:37:19]}  N7c5 {[%clk 0:25:54]} 23. exd5 {[%clk 0:34:27]}  exd5 {[%clk 0:26:04]} 24. Rfb1 {[%clk 0:29:44]}  Re8 {[%clk 0:23:01]}
25. Nf3 {[%clk 0:28:01]}  Qd7 {[%clk 0:18:25]} 26. Bd4 {[%clk 0:26:07]}  Ra6 {[%clk 0:14:42]} 27. Nc3 {[%clk 0:09:04]}  Ne6 {[%clk 0:14:09]}
28. Qa4 {[%clk 0:04:54]}  Qxa4 {[%clk 0:04:39]} 29. Rxa4 {[%clk 0:05:20]}  Nec5 {[%clk 0:05:02]} 30. Ra2 {[%clk 0:04:06]}  Nb3 {[%clk 0:05:07]}
31. Nxd5 {[%clk 0:03:40]}  Rxa5 {[%clk 0:05:17]} 32. Rxa5 {[%clk 0:03:43]}  Nxa5 {[%clk 0:05:45]} 33. Nc7 {[%clk 0:01:33]}  Rd8 {[%clk 0:03:39]}
34. Na6 {[%clk 0:01:39]}  Nb3 {[%clk 0:02:55]} 35. Bc3 {[%clk 0:01:23]}  Ndc1 {[%clk 0:01:20]} 36. Be5 {[%clk 0:01:10]}  Bxe5 {[%clk 0:01:16]}
37. Nxe5 {[%clk 0:01:39]}  c3 {[%clk 0:01:44]} 38. Nb4 {[%clk 0:00:38]}  Rb8 {[%clk 0:01:47]} 39. Nc4 {[%clk 0:00:37]}  Kf8 {[%clk 0:01:25]}
40. f3 {[%clk 0:00:37]}  Nd2 {[%clk 0:00:35]} 41. Rxc1 {[%clk 0:22:45]}  Nxc4 {[%clk 0:30:49]} 42. Rxc3 {[%clk 0:22:40]}  Nxb6 {[%clk 0:31:14]} 1/2-1/2

[Event "2026 European Womens Championship"]
[Site "Batumi, GE"]
[Date "2026.06.04"]
[Round "10"]
[White "Piddubna, Bozhena"]
[Black "Klek, Hanna Marie"]
[Result "1/2-1/2"]
[Board "18"]
[TimeControl "5400+30"]
[WhiteFideId "34109293"]
[BlackFideId "24670057"]
[WhiteElo "2235"]
[BlackElo "2369"]
[WhiteTitle "WIM"]
[BlackTitle "WGM"]
[WhiteClock "0:01:23"]
[BlackClock "0:04:17"]
[Variant "Standard"]

1. d4 {[%clk 1:30:35]}  d5 {[%clk 1:30:53]} 2. c4 {[%clk 1:30:54]}  e6 {[%clk 1:31:17]} 3. Nf3 {[%clk 1:31:14]}  Nf6 {[%clk 1:31:40]}
4. Nc3 {[%clk 1:31:33]}  Bb4 {[%clk 1:32:02]} 5. Bg5 {[%clk 1:30:52]}  h6 {[%clk 1:32:21]} 6. Bxf6 {[%clk 1:30:38]}  Qxf6 {[%clk 1:32:43]}
7. e3 {[%clk 1:30:31]}  O-O {[%clk 1:31:25]} 8. Rc1 {[%clk 1:28:50]}  dxc4 {[%clk 1:27:21]} 9. Bxc4 {[%clk 1:28:19]}  c5 {[%clk 1:24:42]}
10. O-O {[%clk 1:27:31]}  cxd4 {[%clk 1:23:44]} 11. Ne4 {[%clk 1:25:59]}  Qg6 {[%clk 1:14:21]} 12. Qxd4 {[%clk 1:22:29]}  Nc6 {[%clk 1:14:01]}
13. Ne5 {[%clk 1:17:00]}  Nxe5 {[%clk 1:11:23]} 14. Qxe5 {[%clk 1:16:49]}  Bd7 {[%clk 1:00:16]} 15. Ng3 {[%clk 1:06:01]}  Bc6 {[%clk 0:55:17]}
16. Bb5 {[%clk 1:04:20]}  Bd6 {[%clk 0:54:14]} 17. Qxd6 {[%clk 1:00:31]}  Bxb5 {[%clk 0:54:37]} 18. Rfd1 {[%clk 1:00:46]}  Rac8 {[%clk 0:51:05]}
19. h3 {[%clk 0:52:25]}  Rxc1 {[%clk 0:46:23]} 20. Rxc1 {[%clk 0:52:43]}  Qf6 {[%clk 0:45:01]} 21. Qb4 {[%clk 0:47:31]}  Bc6 {[%clk 0:44:18]}
22. Rd1 {[%clk 0:46:59]}  Rc8 {[%clk 0:39:53]} 23. Nh5 {[%clk 0:35:05]}  Qg5 {[%clk 0:32:21]} 24. Ng3 {[%clk 0:33:08]}  Qe5 {[%clk 0:30:16]}
25. a3 {[%clk 0:29:17]}  g6 {[%clk 0:29:13]} 26. Rd4 {[%clk 0:25:25]}  Kg7 {[%clk 0:25:49]} 27. Qc3 {[%clk 0:23:18]}  Bd7 {[%clk 0:20:00]}
28. Qd2 {[%clk 0:23:20]}  Bc6 {[%clk 0:19:40]} 29. Qc3 {[%clk 0:20:56]}  Bd7 {[%clk 0:19:55]} 30. Qd2 {[%clk 0:18:39]}  Bc6 {[%clk 0:20:13]}
31. Rc4 {[%clk 0:11:47]}  Qg5 {[%clk 0:11:16]} 32. Qc3+ {[%clk 0:06:56]}  Qf6 {[%clk 0:09:51]} 33. Rd4 {[%clk 0:06:49]}  e5 {[%clk 0:09:10]}
34. Rd1 {[%clk 0:02:40]}  Qe6 {[%clk 0:08:41]} 35. Qd2 {[%clk 0:02:19]}  Ba4 {[%clk 0:06:44]} 36. Rc1 {[%clk 0:02:38]}  Qd7 {[%clk 0:05:49]}
37. Qe1 {[%clk 0:01:16]}  Rxc1 {[%clk 0:05:20]} 38. Qxc1 {[%clk 0:01:42]}  Qd1+ {[%clk 0:04:55]} 39. Qxd1 {[%clk 0:02:07]}  Bxd1 {[%clk 0:05:22]}
40. Ne4 {[%clk 0:01:40]}  Ba4 {[%clk 0:05:08]} 41. f3 {[%clk 0:26:46]}  f5 {[%clk 0:32:38]} 42. Nd6 {[%clk 0:20:07]}  Bc6 {[%clk 0:31:38]}
43. e4 {[%clk 0:15:33]}  Kf6 {[%clk 0:31:16]} 44. exf5 {[%clk 0:15:39]}  gxf5 {[%clk 0:31:37]} 45. Kf2 {[%clk 0:15:21]}  Ke6 {[%clk 0:27:59]}
46. Nc4 {[%clk 0:15:19]}  Bb5 {[%clk 0:25:04]} 47. Ne3 {[%clk 0:12:58]}  Bd3 {[%clk 0:18:14]} 48. Nd1 {[%clk 0:09:23]}  f4 {[%clk 0:14:37]}
49. Nc3 {[%clk 0:06:33]}  Kf5 {[%clk 0:10:40]} 50. g3 {[%clk 0:02:59]}  h5 {[%clk 0:08:58]} 51. b4 {[%clk 0:01:48]}  Kg5 {[%clk 0:07:14]}
52. h4+ {[%clk 0:00:31]}  Kf5 {[%clk 0:07:26]} 53. Nd5 {[%clk 0:00:56]}  Bc4 {[%clk 0:05:05]} 54. Nc3 {[%clk 0:01:06]}  Bd3 {[%clk 0:04:17]}
55. Nd5 {[%clk 0:01:23]} 1/2-1/2